Cogmind - Beta 10.2 @@@ ROGUE MODE // 2021.01.26 @ 19:20:05 Player: cavemonk Result: Destroyed by G-50 Soldier with Heavy Laser Performance ------------- Evolutions (3) 1500 Regions Visited (14) 2800 Robots Destroyed (141) 705 Value Destroyed (4136) 4136 Prototype IDs (245) 4900 Alien Tech Used (0) 0 Bonus (3634) 3634 TOTAL SCORE: 17675 Bonus ------- High Alert Combat Kills 343 Aligned with FarCom 300 Met Data Miner 300 Used Data Conduit 3000 Friendly Fire -309 Cogmind --------- Core Integrity 0/700 Matter 242/300 Energy 29/100 System Corruption 0% Temperature Cool (9) Movement Core (50) Location -6/Proximity Caves Parts ------- > --- POWER (1) -------- (None) > --- PROPULSION (2) --- (None) > --- UTILITY (8) ------ Advanced Terrain Scan Processor Improved Propulsion Shielding Improved Hacking Suite > --- WEAPON (2) ------- (None) > --- INVENTORY (4) ---- Experimental Heat Sink Improved Armor Integrity Analyzer Advanced Weapon Cycler System Purifier Peak State ------------ > --- POWER ------------ Heavy Deuterium Engine > --- PROPULSION ------- Combat Antigrav System Combat Antigrav System > --- UTILITY ---------- Large Storage Unit Large Storage Unit Advanced Core Analyzer Advanced Weapon Cycler Advanced Transmission Jammer Improved Light Armor Plating Hacking Suite Hacking Suite > --- WEAPON ----------- 8R-AWN's Boregun 8R-AWN's Boregun > --- INVENTORY -------- Cold Fusion Reactor Combat Antigrav System Experimental Heat Sink Large Storage Unit High-capacity Matter Pod Improved Sensor Array Improved Armor Integrity Analyzer Makeshift Transmission Jammer Hardened Medium Armor Plating Advanced Component Analysis Suite System Purifier AWS/EX-DEC Proton Missile Launcher Proton Missile Launcher Missile Launcher [Rating: 83] Favorites ----------- Power Reinforced Ion Engine Engine Reinforced Ion Engine Power Core Enhanced Nuclear Core Reactor Cold Fusion Reactor Propulsion Combat Antigrav System Treads Improved Treads Leg Advanced Myomer Leg Wheel Wheel Hover Unit Combat Antigrav System Utility Large Storage Unit Device Advanced Sensor Array Storage Large Storage Unit Processor Advanced Terrain Scan Processor Hackware Hacking Suite Protection Light Armor Plating Weapon 8R-AWN's Boregun Energy Gun AWS/EX-DEC Energy Cannon Beam Cannon Ballistic Gun 8R-AWN's Boregun Launcher EMP Blaster Slashing Weapon Greatsword Build | -11 -10 -10 -9 -9 -9 -8 -8 -7 -7 -7 -7 -7 -7 -6 ------- Run | Scr Mat Min Mat Min Exi Min Mat Fac Was Fac Low Low Dat Pro Slots Evolved 6 | . . . 2 . . . 2 2 . . . . . . Power . | . . . . . . . . . . . . . . . Propulsion . | . . . . . . . . . . . . . . . Utility 6 | . . . 2 . . . 2 2 . . . . . . Weapon . | . . . . . . . . . . . . . . . Parts Attached 295 | 6 26 5 17 4 66 . 9 102 2 43 3 . 2 10 Power 15 | . 4 . . . 5 . . 4 . 2 . . . . Engine 11 | . 4 . . . 5 . . 2 . . . . . . Core 1 | . . . . . . . . 1 . . . . . . Reactor 3 | . . . . . . . . 1 . 2 . . . . Propulsion 33 | 2 10 2 5 . 10 . 2 2 . . . . . . Treads 19 | 1 6 1 5 . 6 . . . . . . . . . Leg 5 | . . . . . 4 . 1 . . . . . . . Wheel 6 | 1 4 1 . . . . . . . . . . . . Hover 3 | . . . . . . . 1 2 . . . . . . Flight . | . . . . . . . . . . . . . . . Utility 161 | 2 2 2 4 1 19 . 7 82 . 33 1 . 2 6 Device 82 | 1 . 1 . . 7 . 1 51 . 18 1 . . 2 Storage 20 | 1 2 1 3 . 7 . 1 3 . 2 . . . . Processor 5 | . . . . . . . . 2 . 2 . . . 1 Hackware 6 | . . . . . . . 1 2 . 2 . . . 1 Protection 48 | . . . 1 1 5 . 4 24 . 9 . . 2 2 Artifact . | . . . . . . . . . . . . . . . Weapon 86 | 2 10 1 8 3 32 . . 14 2 8 2 . . 4 Energy Gun 13 | . 5 1 2 . 1 . . 4 . . . . . . Energy Cannon 3 | . 1 . . . . . . . . 2 . . . . Ballistic Gun 40 | 2 2 . 4 1 23 . . 8 . . . . . . Ballistic Cannon . | . . . . . . . . . . . . . . . Launcher 17 | . 2 . 2 2 5 . . . 1 1 1 . . 3 Special Weapon . | . . . . . . . . . . . . . . . Impact Weapon . | . . . . . . . . . . . . . . . Slashing Weapon 13 | . . . . . 3 . . 2 1 5 1 . . 1 Piercing Weapon . | . . . . . . . . . . . . . . . Special Melee Weapon . | . . . . . . . . . . . . . . . Unidentified Prototypes 7 | . . 1 . . 2 . 1 1 1 . . . . 1 Parts Lost 20 | . 3 . 1 1 7 . . 1 . 2 . . . 5 Power 3 | . 1 . . . 1 . . . . . . . . 1 Propulsion 1 | . . . . . 1 . . . . . . . . . Utility 11 | . . . . 1 5 . . . . 2 . . . 3 Weapon 5 | . 2 . 1 . . . . 1 . . . . . 1 Highest Loss Streak 5 | . 2 . 1 1 5 . . 1 . 1 . . . 3 Average Slot Usage (%) 88 | . 99 99 99 99 82 66 71 94 100 96 92 92 92 82 Engine 7 | . 13 14 11 11 9 11 9 6 7 1 . . . . Reactor 1 | . . . . . . . . . . 5 7 7 7 3 Treads 8 | . 16 18 22 22 13 . . . . . . . . . Leg 5 | . . . . . 8 22 17 2 . . . . . . Wheel 1 | . 11 9 . . . . . . . . . . . . Hover 5 | . . . . . . . . 12 15 15 15 15 15 15 Device 6 | . 4 . . . 4 . . 13 15 14 15 15 8 12 Storage 20 | . 23 27 33 33 23 22 18 15 15 15 15 15 15 15 Processor 3 | . . . . . . . . 5 7 11 15 15 15 15 Hackware 5 | . . . . . . . 9 14 15 12 15 15 15 14 Protection 5 | . . . 11 10 5 . 8 6 7 6 . . 6 2 Energy Gun 3 | . 5 16 12 . . 11 9 1 . . . . . . Ballistic Gun 7 | . 18 . 4 13 12 . . 11 . . . . . . Launcher 2 | . . 11 4 8 4 . . . . . . . . . Slashing Weapon 2 | . . . . . 1 . . . 15 11 6 7 7 2 Naked Turns . | . . . . . . . . . . . . . . . Heaviest Build 216 | 8 63 62 116 116 182 180 196 216 59 66 51 51 59 59 Greatest Support 60 | 10 40 40 46 46 60 60 60 60 60 60 60 60 60 60 Greatest Overweight (x) 21 | 2 6 6 5 2 21 2 6 3 . 1 . . . 13 Average Overweight (x) 1 | . 3 4 2 2 1 2 3 . . . . . . . Largest Inventory Capacity 56 | 6 18 18 28 28 44 44 50 56 16 16 16 16 16 16 Average Capacity 25 | 5 15 17 27 28 30 44 44 21 16 16 16 16 16 15 Most Carried 44 | 6 18 18 28 28 44 44 44 44 16 16 16 16 16 16 Average Carried 23 | 2 12 17 25 27 26 44 43 21 15 15 15 15 16 15 Final Capacity 44 | 6 18 18 28 28 44 44 44 16 16 16 16 16 16 4 Final Carried 44 | 6 18 18 28 27 44 44 44 16 16 16 16 16 16 4 Class Distribution -------------------- 55% | Hauler-Mutant 11% | Mutant 7% | Machinist-Scout 7% | Scavenger-Mutant 6% | Machinist-Mutant 4% | Hacker-Scout Dominant Class ---------------- Mutant | -10/Materials Mutant | -10/Mines Hauler-Mutant | -9/Materials Hauler-Mutant | -9/Mines Hauler-Mutant | -9/Exiles Hauler-Mutant | -8/Mines Hauler-Mutant | -8/Materials Scavenger-Mutant | -7/Factory Hacker-Scout | -7/Waste Machinist-Mutant | -7/Factory Machinist-Scout | -7/Lower Caves Machinist-Scout | -7/Lower Caves Machinist-Mutant | -7/Data Miner Machinist-Scout | -6/Proximity Caves Resources | -11 -10 -10 -9 -9 -9 -8 -8 -7 -7 -7 -7 -7 -7 -6 ----------- Run | Scr Mat Min Mat Min Exi Min Mat Fac Was Fac Low Low Dat Pro Matter Collected 7290 | 296 533 70 370 91 3003 . 90 2181 . 526 38 . 20 72 Remotely . | . . . . . . . . . . . . . . . Salvage Created 6223 | 123 654 70 633 149 513 . 1389 1963 . 675 20 . 20 14 Parts 372 | 7 34 2 33 18 26 . 88 110 . 50 . . 2 2 Haulers Intercepted 8 | . 2 . 3 . . . . 2 . 1 . . . . Recyclers Shooed 5 | . 1 . 1 . . . . 2 . 1 . . . . Parts Field Recycled . | . . . . . . . . . . . . . . . Retrieved Matter . | . . . . . . . . . . . . . . . Parts Self-Destructed 5 | . . . . . . . . . . . . 2 . 3 Prevented 5 | . . . . . . . . . . . . . . 5 Kills | -11 -10 -10 -9 -9 -9 -8 -8 -7 -7 -7 -7 -7 -7 -6 ------- Run | Scr Mat Min Mat Min Exi Min Mat Fac Was Fac Low Low Dat Pro Combat Hostiles Destroyed 98 | . 7 . 11 9 8 . 28 23 . 9 1 . . 2 Melee 12 | . . . . . 1 . . 2 . 8 1 . . . Guns 58 | . 6 . 5 3 . . 25 19 . . . . . . Cannons 1 | . 1 . . . . . . . . . . . . . AOE 24 | . . . 5 6 7 . 2 1 . 1 . . . 2 Classes Destroyed 19 | 2 3 . 4 . 3 . 3 3 . . 1 . . . Worker 6 | . . . . . . . . 2 . 4 . . . . Builder 5 | . . . . . . . 1 2 . 2 . . . . Tunneler 3 | 2 . . . . . . 1 . . . . . . . Hauler 8 | . 2 . 3 . . . . 2 . 1 . . . . Recycler 8 | 1 3 . . . . . 1 3 . . . . . . Mechanic 1 | . . . . . . . . 1 . . . . . . Operator 5 | . 1 . . . . . 2 2 . . . . . . Turret 1 | . . . . . 1 . . . . . . . . . Watcher 8 | . . . 1 . . . 4 1 . 2 . . . . Swarmer 24 | . . . 3 7 . . 8 1 . 3 . . . 2 Grunt 35 | . 7 . 3 2 . . 12 11 . . . . . . Brawler 1 | . . . . . . . 1 . . . . . . . Duelist 2 | . . . 1 . . . . 1 . . . . . . Sentry 19 | . . . 4 . . . 6 5 . 4 . . . . Hunter 3 | . . . . . . . 1 2 . . . . . . Programmer 5 | . . . . . . . . 3 . 2 . . . . Zionite 3 | . . . . . 3 . . . . . . . . . Thief 1 | . . . . . . . . . . . 1 . . . Assembled 7 | . . . . . 7 . . . . . . . . . Thug 1 | . . 1 . . . . . . . . . . . . Best Kill Streak 15 | 1 2 . 3 4 7 . 15 5 . 4 1 . 1 1 Combat Bots Only 9 | . 2 . 3 4 7 . 9 3 . 3 1 . . 1 Max Kills in Single Turn 3 | 1 1 1 2 2 3 . 3 1 . 2 1 . 1 1 Gunslinging . | . . . . . . . . . . . . . . . Exploded 3 | . . . 2 2 3 . 1 1 . 1 . . . 1 Melee 1 | . . . . . 1 . . 1 . 1 1 . . . Uniques/NPCs Destroyed 5 | . . . . . 4 . . . . . . . 1 . EX-HEX (-9/Exiles) 8R-AWN (-9/Exiles) EX-BIN (-9/Exiles) EX-DEC (-9/Exiles) Data Miner (-7/Data Miner) Combat | -11 -10 -10 -9 -9 -9 -8 -8 -7 -7 -7 -7 -7 -7 -6 -------- Run | Scr Mat Min Mat Min Exi Min Mat Fac Was Fac Low Low Dat Pro Damage Taken 6599 | . 582 . 450 268 1556 . 447 988 . 975 80 . 414 839 Core 1136 | . 82 . 73 6 230 . 31 108 . 186 21 . 43 356 Absorbed by Shields . | . . . . . . . . . . . . . . . Core Remaining (%) 70 | 100 . 67 . . . 22 94 . . . . . . . Volleys Fired 305 | 9 54 5 44 10 90 . . 82 . 6 1 . . 4 Largest 2 | 2 2 2 2 2 2 . . 2 . 1 1 . . 1 Hottest 125 | 40 125 80 80 46 63 . . 60 . 81 49 . . 49 Shots Fired 617 | 18 103 10 78 16 133 . 81 167 . 6 1 . . 4 Gun 568 | 18 89 10 62 13 128 . 81 167 . . . . . . Cannon 18 | . 13 . . . . . . . . 5 . . . . Launcher 31 | . 1 . 16 3 5 . . . . 1 1 . . 4 Special . | . . . . . . . . . . . . . . . Kinetic 393 | 18 68 . 8 13 128 . . 158 . . . . . . Thermal 22 | . 22 . . . . . . . . . . . . . Explosive 8 | . 1 . 2 1 1 . . . . . . . . 3 Electromagnetic 194 | . 12 10 68 2 4 . 81 9 . 6 1 . . 1 Robot Hit Streak 15 | 7 15 9 11 12 11 . 13 8 . 7 . . . . Robot Miss Streak 5 | 2 4 1 5 1 2 . 4 4 . . . . . . Penetration Max 2 | . . . . . . . . 2 . . . . . . Secondary Targets 3 | . 1 . . . . . . 2 . . . . . . Max Gunslinging Chain 1 | . 1 . . . . . . 1 . . . . . . Autonomous 90 | . . . . . . . 81 9 . . . . . . Shots Hit Robots 412 | 11 71 8 51 13 53 . 73 91 . 35 5 . 1 . Core Hits 244 | 4 26 3 26 11 32 . 61 57 . 20 1 . 1 2 Critical Hits 72 | . 1 . 1 . 11 . 3 53 . 3 . . . . Critical Kills 27 | . . . 1 . 4 . 1 20 . 1 . . . . Critical Parts Destroyed 29 | . . . . . 1 . 1 25 . 2 . . . . Melee Attacks 121 | . . . . . 24 . . 6 . 69 10 3 5 4 Impact . | . . . . . . . . . . . . . . . Slashing 121 | . . . . . 24 . . 6 . 69 10 3 5 4 Piercing . | . . . . . . . . . . . . . . . Sneak Attacks 11 | . . . . . . . . 1 . 9 . . 1 . Combat Hostiles . | . . . . . . . . . . . . . . . Follow-up Attacks 2 | . . . . . . . . . . 2 . . . . Damage Inflicted 12102 | 128 843 107 1224 446 1832 . 2276 2249 . 2354 285 . 140 218 Guns 5871 | 128 739 107 602 159 511 . 1865 1760 . . . . . . Cannons 261 | . 104 . . . . . . . . 157 . . . . Explosions 2530 | . . . 622 287 560 . 411 280 . 126 26 . . 218 Melee 3440 | . . . . . 761 . . 209 . 2071 259 . 140 . Ramming . | . . . . . . . . . . . . . . . Kinetic 2919 | 128 498 . 106 159 511 . . 1517 . . . . . . Thermal 992 | . 217 . 65 91 252 . 87 280 . . . . . . Explosive 722 | . . . 195 138 94 . 95 . . . . . . 200 Electromagnetic 4029 | . 128 107 858 58 214 . 2094 243 . 283 26 . . 18 Impact . | . . . . . . . . . . . . . . . Slashing 3440 | . . . . . 761 . . 209 . 2071 259 . 140 . Piercing . | . . . . . . . . . . . . . . . Highest Corruption 1 | . . . . 1 1 . . 1 1 1 . . . . Average Corruption 1 | . . . . 1 1 . . 1 1 1 . . . . Corruption Purged 2 | . . . . . 1 . . . . 1 . . . . Effects 25 | . . . . . 22 . . . . 3 . . . . Message Errors 11 | . . . . . 10 . . . . 1 . . . . Energy Discharges 6 | . . . . . 5 . . . . 1 . . . . Data Loss (minor) 8 | . . . . . 7 . . . . 1 . . . . Overload Shots . | . . . . . . . . . . . . . . . Overflow Damage 814 | . . . 44 . 4 . 117 23 . 580 42 . . 4 Projectiles . | . . . . . . . . . . . . . . . Explosions 175 | . . . 44 . 4 . 117 6 . . . . . 4 Melee 639 | . . . . . . . . 17 . 580 42 . . . Knockbacks . | . . . . . . . . . . . . . . . Impact . | . . . . . . . . . . . . . . . Kinetic . | . . . . . . . . . . . . . . . Secondary . | . . . . . . . . . . . . . . . Self-Inflicted Damage 293 | . 6 . 59 84 . . 66 . . 33 2 . . 43 Shots 15 | . 1 . 4 4 . . 2 . . 1 1 . . 2 Rammed . | . . . . . . . . . . . . . . . Targets Rammed . | . . . . . . . . . . . . . . . Kicked . | . . . . . . . . . . . . . . . Crushed . | . . . . . . . . . . . . . . . Highest Temperature 260 | . 218 150 196 64 207 . . 260 . 126 . . . . Average Temperature 74 | . 70 75 73 28 58 . . 88 . 54 . . . . Received Heat Transfer 1320 | . 318 . 102 66 . . 153 252 . 240 . . 54 135 Effects 1 | . . . . . . . . 1 . . . . . . Energy Bleed 1 | . . . . . . . . 1 . . . . . . Siege Activations . | . . . . . . . . . . . . . . . Robots Corrupted 7 | . . 1 3 . . . 1 2 . . . . . . Combat Hostiles 3 | . . . 1 . . . 1 1 . . . . . . Parts Fried 32 | . . 2 8 1 . . 15 3 . 3 . . . . Impact Corruptions . | . . . . . . . . . . . . . . . Robots Melted . | . . . . . . . . . . . . . . . Combat Hostiles . | . . . . . . . . . . . . . . . Parts Melted . | . . . . . . . . . . . . . . . Heat Transferred 1118 | . 518 . 50 100 200 . 100 150 . . . . . . Parts Sabotaged . | . . . . . . . . . . . . . . . Parts Stolen . | . . . . . . . . . . . . . . . Parts Stripped . | . . . . . . . . . . . . . . . Power Chain Reactions 8 | . . . 1 2 3 . 2 . . . . . . . Missiles Intercepted . | . . . . . . . . . . . . . . . Alert | -11 -10 -10 -9 -9 -9 -8 -8 -7 -7 -7 -7 -7 -7 -6 ------- Run | Scr Mat Min Mat Min Exi Min Mat Fac Was Fac Low Low Dat Pro Peak Influence 946 | 15 95 27 661 502 . . 494 946 346 461 . . . . Initial 331 | . 9 27 10 257 . . . 25 331 242 . . . . Average 248 | 7 49 27 215 402 . . 119 546 336 284 . . . . Maximum Alert Level 3 | . . . 2 2 . . 2 3 1 2 . . . . Low Security (%) 53 | 100 100 100 64 . . 100 92 11 . 20 . . . . Level 1 26 | . . . 16 63 . . 5 6 100 76 . . . . Level 2 17 | . . . 19 37 . . 1 67 . 3 . . . . Level 3 2 | . . . . . . . . 14 . . . . . . Level 4 . | . . . . . . . . . . . . . . . Level 5 . | . . . . . . . . . . . . . . . High Security . | . . . . . . . . . . . . . . . Max Security . | . . . . . . . . . . . . . . . Squads Dispatched 17 | . 1 . . . . . 3 6 . 7 . . . . Investigation 7 | . . . . . . . 2 2 . 3 . . . . Extermination 4 | . . . . . . . . 2 . 2 . . . . Reinforcement 6 | . 1 . . . . . 1 2 . 2 . . . . Assault . | . . . . . . . . . . . . . . . Garrison . | . . . . . . . . . . . . . . . Intercept . | . . . . . . . . . . . . . . . Construction Impeded 1 | . . . . . . . . . . 1 . . . . Haulers Reinforced . | . . . . . . . . . . . . . . . Stealth | -11 -10 -10 -9 -9 -9 -8 -8 -7 -7 -7 -7 -7 -7 -6 --------- Run | Scr Mat Min Mat Min Exi Min Mat Fac Was Fac Low Low Dat Pro Distress Signals 8 | . 2 . 3 . . . 2 . . 1 . . . . Communications Jammed 10 | . . . . . . . . . . 10 . . . . Distress Signals 10 | . . . . . . . . . . 10 . . . . Times Spotted 204 | . 20 . 16 9 44 . 36 29 6 30 1 3 4 6 Peak Tracking Total 9 | . 4 . 4 4 9 . 5 4 5 5 1 4 4 4 Tactical Retreats 39 | . . . . . 26 . 1 2 1 8 . 1 . . Traps | -11 -10 -10 -9 -9 -9 -8 -8 -7 -7 -7 -7 -7 -7 -6 ------- Run | Scr Mat Min Mat Min Exi Min Mat Fac Was Fac Low Low Dat Pro Traps Triggered 6 | . . . . . . . . 4 . 2 . . . . Indirectly . | . . . . . . . . . . . . . . . Trap Hack Attempts . | . . . . . . . . . . . . . . . Triggered . | . . . . . . . . . . . . . . . Disarmed . | . . . . . . . . . . . . . . . Reprogrammed . | . . . . . . . . . . . . . . . Reused . | . . . . . . . . . . . . . . . Traps Extracted . | . . . . . . . . . . . . . . . Installed . | . . . . . . . . . . . . . . . Triggered 2 | . . . . . . . . . . . . . . 2 Machines | -11 -10 -10 -9 -9 -9 -8 -8 -7 -7 -7 -7 -7 -7 -6 ---------- Run | Scr Mat Min Mat Min Exi Min Mat Fac Was Fac Low Low Dat Pro Machines Disabled 32 | . . . 6 3 7 . 5 10 . 1 . . . . Max in Single Turn 3 | . . . 1 1 2 . 1 3 . 1 . . . . Garrison Access 1 | . . . . . . . . . . 1 . . . . Machines Sabotaged . | . . . . . . . . . . . . . . . Garrisons Compromised . | . . . . . . . . . . . . . . . Overloaded Fab Kills . | . . . . . . . . . . . . . . . Fab Network Shutdowns 1 | . . . . . . . . 1 . . . . . . Hacking | -11 -10 -10 -9 -9 -9 -8 -8 -7 -7 -7 -7 -7 -7 -6 --------- Run | Scr Mat Min Mat Min Exi Min Mat Fac Was Fac Low Low Dat Pro Machines Accessed 57 | . 6 1 6 . 2 . 10 9 . 20 . . 3 . Terminals 29 | . 5 . 5 . . . 7 3 . 9 . . . . Fabricators 6 | . . . . . . . . 3 . 3 . . . . Repair Stations 5 | . . . 1 . . . 1 1 . 2 . . . . Recycling Units 1 | . 1 . . . . . . . . . . . . . Scanalyzers 8 | . . . . . . . 2 2 . 4 . . . . Garrison Access 2 | . . . . . . . . . . 2 . . . . Total Hacks 217 | . 23 1 14 . 24 . 33 26 . 73 . . 23 . Successful 158 | . 12 1 7 . 24 . 21 17 . 53 . . 23 . Failed 57 | . 11 . 7 . . . 11 9 . 19 . . . . Catastrophic 8 | . 1 . 1 . . . 2 . . 4 . . . . Database Lockouts 2 | . . . . . . . 1 . . 1 . . . . Manual 74 | . 17 . 6 . 3 . 20 7 . 21 . . . . Terminals 84 | . 20 . 11 . . . 23 6 . 24 . . . . Fabricators 22 | . . . . . . . . 8 . 14 . . . . Repair Stations 19 | . . . 3 . . . 2 5 . 9 . . . . Recycling Units 3 | . 3 . . . . . . . . . . . . . Scanalyzers 39 | . . . . . . . 8 7 . 24 . . . . Garrison Access 2 | . . . . . . . . . . 2 . . . . Terminal Hacks 77 | . 6 1 2 . 24 . 9 1 . 11 . . 23 . Record 34 | . . . . . 23 . . . . . . . 11 . Part Schematic 15 | . . . . . . . 1 1 . 4 . . 9 . Prototype ID Bank 5 | . 1 . . . . . 1 . . . . . 3 . Open Door 1 | . . 1 . . . . . . . . . . . . Branch Access Points 2 | . . . . . . . 1 . . 1 . . . . Terminal Index 3 | . 1 . 1 . . . . . . 1 . . . . Fabricator Index 1 | . . . . . . . . . . 1 . . . . Repair Station Index 1 | . . . . . . . . . . 1 . . . . Scanalyzer Index 1 | . . . . . . . . . . 1 . . . . Unreport Threat 4 | . . . . . . . 3 . . 1 . . . . Transport Status 1 | . 1 . . . . . . . . . . . . . Recall Investigation 1 | . . . . . . . 1 . . . . . . . Hauler Manifests 1 | . 1 . . . . . . . . . . . . . Registered Components 1 | . . . 1 . . . . . . . . . . . Registered Prototypes 1 | . . . . . . . 1 . . . . . . . Zone Layout 4 | . 2 . . . . . 1 . . 1 . . . . EX-Prototype ID Bank 1 | . . . . . 1 . . . . . . . . . Fabricator Hacks 11 | . . . . . . . . 4 . 7 . . . . Load Schematic 6 | . . . . . . . . 2 . 4 . . . . Build 5 | . . . . . . . . 2 . 3 . . . . Repair Station Hacks 17 | . . . 2 . . . 2 5 . 8 . . . . Scan Component 9 | . . . 1 . . . 1 3 . 4 . . . . Repair 7 | . . . 1 . . . 1 2 . 3 . . . . Refit 1 | . . . . . . . . . . 1 . . . . Recycling Unit Hacks 1 | . 1 . . . . . . . . . . . . . Retrieve Components 1 | . 1 . . . . . . . . . . . . . Scanalyzer 33 | . . . . . . . 5 6 . 22 . . . . Insert Component 16 | . . . . . . . 2 3 . 11 . . . . Analyze 17 | . . . . . . . 3 3 . 11 . . . . Garrison Access Hacks 1 | . . . . . . . . . . 1 . . . . Seal Access 1 | . . . . . . . . . . 1 . . . . Unauthorized Hacks 18 | . 5 . 3 . . . 5 1 . 4 . . . . Terminals 15 | . 5 . 3 . . . 5 . . 2 . . . . Track 8 | . 3 . 3 . . . 1 . . 1 . . . . Assimilate 1 | . . . . . . . . . . 1 . . . . Botnet 5 | . 1 . . . . . 4 . . . . . . . Operators 1 | . 1 . . . . . . . . . . . . . Fabricators 3 | . . . . . . . . 1 . 2 . . . . Prioritize 2 | . . . . . . . . 1 . 1 . . . . Siphon 1 | . . . . . . . . . . 1 . . . . Repair Stations . | . . . . . . . . . . . . . . . Recycling Units . | . . . . . . . . . . . . . . . Scanalyzers . | . . . . . . . . . . . . . . . Garrison Access . | . . . . . . . . . . . . . . . Data Cores Recovered 2 | . . . . . . . 1 1 . . . . . . Used 1 | . . . . . . . . 1 . . . . . . Hacking Detections 48 | . 6 . 6 . . . 10 8 . 18 . . . . Full Trace Events 5 | . . . . . . . 1 2 . 2 . . . . Feedback Events 1 | . . . . . . . . . . 1 . . . . Hackware Fried 1 | . . . . . . . . . . 1 . . . . Feedback Blocked . | . . . . . . . . . . . . . . . Robot Schematics Acquired . | . . . . . . . . . . . . . . . Robots Built . | . . . . . . . . . . . . . . . Matter . | . . . . . . . . . . . . . . . Time . | . . . . . . . . . . . . . . . Total Robot Build Rating . | . . . . . . . . . . . . . . . Part Schematics Acquired 27 | . . . . . . . 2 4 . 12 . . 9 . Parts Built 6 | . . . . . . . . 2 . 4 . . . . Matter 734 | . . . . . . . . 256 . 478 . . . . Time 343 | . . . . . . . . 128 . 215 . . . . Total Part Build Rating 32 | . . . . . . . . 16 . 16 . . . . Parts Repaired 6 | . . . . . . . 1 2 . 3 . . . . Time 399 | . . . 32 . . . 38 106 . 223 . . . . Parts Recycled . | . . . . . . . . . . . . . . . Recycled Matter . | . . . . . . . . . . . . . . . Retrieved Matter . | . . . . . . . . . . . . . . . Retrieved Components 6 | . 6 . . . . . . . . . . . . . Parts Scanalyzed 14 | . . . . . . . 2 3 . 9 . . . . Part Schematics Acquired 12 | . . . . . . . 1 3 . 8 . . . . Parts Damaged 5 | . . . . . . . 1 1 . 3 . . . . Bothacking | -11 -10 -10 -9 -9 -9 -8 -8 -7 -7 -7 -7 -7 -7 -6 ------------ Run | Scr Mat Min Mat Min Exi Min Mat Fac Was Fac Low Low Dat Pro Used RIF Installer . | . . . . . . . . . . . . . . . Robots Hacked . | . . . . . . . . . . . . . . . Non-combat . | . . . . . . . . . . . . . . . Combat . | . . . . . . . . . . . . . . . Robot Hacks Applied . | . . . . . . . . . . . . . . . Relay Couplers Released . | . . . . . . . . . . . . . . . Robots Rewired . | . . . . . . . . . . . . . . . Allies Hacked . | . . . . . . . . . . . . . . . Hacks Repelled . | . . . . . . . . . . . . . . . Allies | -11 -10 -10 -9 -9 -9 -8 -8 -7 -7 -7 -7 -7 -7 -6 -------- Run | Scr Mat Min Mat Min Exi Min Mat Fac Was Fac Low Low Dat Pro Total Allies 1 | . . . . . . . . . . 1 . . . . Largest Group 1 | . . . . . . . . . . 1 . . . . Highest-Rated Group 26 | . . . . . . . . . . 26 . . . . Highest-Rated Ally 26 | . . . . . . . . . . 26 . . . . Total Orders 1 | . . . . . 1 . . . . . . . . . RETURN 1 | . . . . . 1 . . . . . . . . . Ally Attacks 106 | . . . . . 106 . . . . . . . . . Total Damage 561 | . . . . . 561 . . . . . . . . . Kills 4 | . . . . . 4 . . . . . . . . . Allies Corrupted . | . . . . . . . . . . . . . . . Allies Melted . | . . . . . . . . . . . . . . . Intel | -11 -10 -10 -9 -9 -9 -8 -8 -7 -7 -7 -7 -7 -7 -6 ------- Run | Scr Mat Min Mat Min Exi Min Mat Fac Was Fac Low Low Dat Pro Robot Analysis Total 115 | . . . . . . . . . . . . . 115 . Derelict Logs Recovered 6 | . . 1 . 1 . . . . . . 1 2 . 1 Drone Launches 26 | . . . . . 26 . . . . . . . . . Drone Recoveries 23 | . . . . . 23 . . . . . . . . . Exploration | -11 -10 -10 -9 -9 -9 -8 -8 -7 -7 -7 -7 -7 -7 -6 ------------- Run | Scr Mat Min Mat Min Exi Min Mat Fac Was Fac Low Low Dat Pro Turns Passed 16008 | 174 1442 205 1077 300 5269 125 1773 1771 96 2398 225 572 138 443 Spaces Moved 9590 | 140 738 115 437 134 2327 70 779 1292 119 1978 247 711 156 347 Core 45 | 40 . . . . 1 . . . . . . . . 4 Treads 2082 | . 74 27 437 134 1410 . . . . . . . . . Legs 1904 | . . . . . 916 70 779 139 . . . . . . Wheels 852 | 100 664 88 . . . . . . . . . . . . Hover 4707 | . . . . . . . . 1153 119 1978 247 711 156 343 Flight . | . . . . . . . . . . . . . . . Fastest Speed 50 | 50 80 120 180 200 150 180 210 76 76 76 76 76 76 50 Average Speed 129 | 94 129 148 200 200 188 180 210 91 76 76 76 76 76 80 Slowest Speed 1100 | 150 220 180 260 200 1100 180 300 210 76 146 76 76 76 700 Overloaded Moves . | . . . . . . . . . . . . . . . Propulsion Burnouts . | . . . . . . . . . . . . . . . Robots Hopped . | . . . . . . . . . . . . . . . Cave-ins Triggered . | . . . . . . . . . . . . . . . Exploration Rate (%) 48 | 7 69 21 33 29 90 20 60 23 78 50 49 78 77 46 Regions Visited 14 Branch Regions 8 Pre-discovered Areas 29 | . . 1 . . 1 . . . . . . 1 26 . Known Exits Taken 4 | . . . . . . . . . . 1 1 1 1 . Unknown Exits Taken 8 | 1 1 1 1 1 1 1 1 . . . . . . . Scrap Searched 3 | . . . . . . . . . . . 1 2 . . Spaces Dug 101 | . 9 . 9 . . . . . . 30 . 3 . 50 Terrain Destroyed 265 | . 9 . 46 14 14 . 46 53 . 30 . 3 . 50 Melee 36 | . . . . . . . . . . 30 . 3 . 3 Projectile 15 | . . . . . 12 . . 3 . . . . . . AOE 214 | . 9 . 46 14 2 . 46 50 . . . . . 47 Terrain Rammed . | . . . . . . . . . . . . . . . Walls Destroyed . | . . . . . . . . . . . . . . . Machines Disabled . | . . . . . . . . . . . . . . . Actions | -11 -10 -10 -9 -9 -9 -8 -8 -7 -7 -7 -7 -7 -7 -6 --------- Run | Scr Mat Min Mat Min Exi Min Mat Fac Was Fac Low Low Dat Pro Total 12482 | 164 1131 139 566 150 3074 69 920 1741 125 2736 263 736 164 504 Wait 1635 | . 260 3 28 3 324 . 107 152 . 618 . 21 . 119 Move 9577 | 139 737 114 436 133 2326 69 778 1292 118 1977 246 710 155 347 Hop . | . . . . . . . . . . . . . . . Pick Up 265 | 9 30 8 25 . 140 . 12 24 1 13 1 1 1 . Fast Attach 64 | 4 6 2 3 . 28 . 4 8 2 4 1 . . 2 Attach 69 | 2 3 . 7 1 20 . 4 24 . 4 1 . . 3 Detach 23 | . 2 . . . 9 . 1 7 1 1 . . . 2 Swap 162 | . 17 3 7 3 18 . 1 70 . 35 1 . 2 5 Drop 243 | 1 22 4 16 . 95 . 13 51 3 16 2 1 1 18 Fire 305 | 9 54 5 44 10 90 . . 82 . 6 1 . . 4 Melee 113 | . . . . . 24 . . 5 . 62 10 3 5 4 Ram . | . . . . . . . . . . . . . . . Kick . | . . . . . . . . . . . . . . . Crush . | . . . . . . . . . . . . . . . Escape Stasis 26 | . . . . . . . . 26 . . . . . . Rewire . | . . . . . . . . . . . . . . . Trap . | . . . . . . . . . . . . . . . Miscellaneous . | . . . . . . . . . . . . . . . Route ------- -11/Scrapyard -10/Materials -10/Mines -9/Materials -9/Mines (discovered 2 exits: *Mat / *Exi) -9/Exiles (discovered 2 exits: [*Min x2]) -8/Mines -8/Materials (discovered 3 exits: *Fac x2 / *Sto) -7/Factory (discovered 2 exits: Fac / *Low) -7/Waste -7/Factory (discovered 4 exits: *Fac x2 / *Low x2) -7/Lower Caves -7/Lower Caves -7/Data Miner -6/Proximity Caves History --------- Turn | Location | Event 39 | -11/Scrapyard | Discovered new exit (range 15) 175 | -11/Scrapyard | Entered Materials 304 | -10/Materials | Build established: Mutant 994 | -10/Materials | Discovered new exit (range 8) 1617 | -10/Materials | Entered Mines 1650 | -10/Mines | Met a Derelict bent on vengeance 1659 | -10/Mines | Received a Rocket Launcher from a helpful Derelict 1734 | -10/Mines | Discovered new exit (range 5) 1744 | -10/Mines | Found the Drone Emporium 1755 | -10/Mines | Found Prototype Device 1755 | -10/Mines | Identified Thief Drone Bay 1822 | -10/Mines | Entered Materials 1822 | -9/Materials | Evolved 2 slots: Utility x2 2111 | -9/Materials | Build established: Hauler-Mutant 2371 | -9/Materials | Discovered new exit (range 13) 2899 | -9/Materials | Entered Mines 2929 | -9/Mines | Learned Materials interactive machine intel 2953 | -9/Mines | Discovered new exit (range 8) 3191 | -9/Mines | Deemed a non-threat by the Exiles lab entrance 3191 | -9/Mines | Discovered new exit (range 5) 3199 | -9/Mines | Entered Exiles 3227 | -9/Exiles | Discovered new exit (range 15) 3252 | -9/Exiles | Met 8R-AWN 3284 | -9/Exiles | Met EX-HEX 3649 | -9/Exiles | Met EX-DEC 3828 | -9/Exiles | Met EX-BIN 3948 | -9/Exiles | Aligned with FarCom system 3950 | -9/Exiles | Given EX-Vault access code 3996 | -9/Exiles | Opened EX-Vault 4147 | -9/Exiles | Warned to stay clear of 0b10 Research branches 4370 | -9/Exiles | Attacked by the Exiles 4392 | -9/Exiles | Allies destroyed EX-HEX 4397 | -9/Exiles | Destroyed 7 combat bots 4822 | -9/Exiles | Found Prototype Ballistic Gun 4822 | -9/Exiles | Identified 8R-AWN's Boregun 4933 | -9/Exiles | Destroyed 8R-AWN 5105 | -9/Exiles | Found Cloak of Protection 5110 | -9/Exiles | Found Flying Fortress v7 5279 | -9/Exiles | Found 8R-AWN's Boregun 5441 | -9/Exiles | Core integrity fell below 50% 5488 | -9/Exiles | Lost 5 parts (1p1n3u) 6146 | -9/Exiles | Found Prototype Device 7337 | -9/Exiles | Found Prototype Device 7372 | -9/Exiles | Allies destroyed EX-BIN 7592 | -9/Exiles | Learned location of Zion (-6) 7711 | -9/Exiles | Destroyed EX-DEC 7879 | -9/Exiles | Found Prototype Energy Gun 7893 | -9/Exiles | Found Deploy-a-Sentry 8013 | -9/Exiles | Identified System Purifier 8049 | -9/Exiles | Identified AS-neutralizer No. 17b 8051 | -9/Exiles | Identified AWS/EX-DEC 8447 | -9/Exiles | Discovered new exit (range 14) 8468 | -9/Exiles | Left Exiles lab with Deploy-a-Sentry 8468 | -9/Exiles | Entered Mines 8575 | -8/Mines | Discovered new exit (range 10) 8593 | -8/Mines | Entered Materials 8593 | -8/Materials | Evolved 2 slots: Utility x2 8594 | -8/Materials | Loaded intel: 19 interactive machine locations 8851 | -8/Materials | Destroyed 9 combat bots 8939 | -8/Materials | Discovered new exit (range 5) 9238 | -8/Materials | Discovered new exit (range 15) 9777 | -8/Materials | Central database locked down 9969 | -8/Materials | Discovered new exit (range 15) 10068 | -8/Materials | Repaired Reflective Plating 10202 | -8/Materials | Identified exit to Storage 10366 | -8/Materials | Entered Factory 10366 | -7/Factory | Evolved 2 slots: Utility x2 10551 | -7/Factory | Fabricated Cmb. Antigrav System (x2) 10564 | -7/Factory | Local fabrication network quarantined 10585 | -7/Factory | Repaired Cmb. Antigrav System? 10970 | -7/Factory | Build established: Scavenger-Mutant 11271 | -7/Factory | Repaired Adv. Sensor Array 11925 | -7/Factory | Discovered new exit (range 20) 11977 | -7/Factory | Discovered new exit (range 16) 11980 | -7/Factory | Build established: Scavenger-Scout 12137 | -7/Factory | Sucked down chute 12137 | -7/Factory | Entered Waste 12140 | -7/Waste | Found Prototype Launcher 12140 | -7/Waste | Identified Com. Tesla Bomb Launcher 12148 | -7/Waste | Spotted C-40 Crusher 12191 | -7/Waste | Spotted C-40 Crusher 12195 | -7/Waste | Spotted C-40 Crusher 12197 | -7/Waste | Spotted C-40 Crusher 12213 | -7/Waste | Spotted C-40 Crusher 12222 | -7/Waste | Discovered new exit (range 14) 12223 | -7/Waste | Spotted C-40 Crusher 12233 | -7/Waste | Entered Factory 12320 | -7/Factory | Hacking Suite fried by hacking feedback 12939 | -7/Factory | Identified exit to Lower Caves 13143 | -7/Factory | Fabricated Imp. Hacking Suite? 13385 | -7/Factory | Discovered new exit (range 13) 13480 | -7/Factory | Fabricated Adv. Signal Interpreter (x2) 13531 | -7/Factory | Fabricated Imp. Hacking Suite (x1) 13906 | -7/Factory | Repaired Cold Fusion Reactor 14020 | -7/Factory | Repaired Com. Tesla Bomb Launcher 14065 | -7/Factory | Repaired Greatsword 14113 | -7/Factory | Build established: Machinist-Mutant 14537 | -7/Factory | Discovered new exit (range 16) 14548 | -7/Factory | Identified exit to Factory 14604 | -7/Factory | Central database locked down 14631 | -7/Factory | Entered Lower Caves 14747 | -7/Lower Caves | Learned Factory machine intel 14831 | -7/Lower Caves | Discovered new exit (range 14) 14832 | -7/Lower Caves | Encountered a Warlord checkpoint 14841 | -7/Lower Caves | Identified exit to Lower Caves 14856 | -7/Lower Caves | Entered another Lower Caves area 14912 | -7/Lower Caves | Build established: Machinist-Scout 14969 | -7/Lower Caves | Encountered a Warlord checkpoint 15024 | -7/Lower Caves | Learned Factory emergency access door positions 15265 | -7/Lower Caves | Spotted B-75 Beast 15383 | -7/Lower Caves | Discovered new exit (range 14) 15427 | -7/Lower Caves | Identified exit to Data Miner 15428 | -7/Lower Caves | Entered Data Miner 15428 | -7/Data Miner | Discovered new exit (range 6) 15443 | -7/Data Miner | Met Data Miner 15457 | -7/Data Miner | Learned location of Section 7 (-2) 15457 | -7/Data Miner | Acquired the access code to Warlord's prototype stash 15468 | -7/Data Miner | Received God Mode back door access code from Data Miner 15528 | -7/Data Miner | Destroyed Data Miner 15531 | -7/Data Miner | Interfaced with the Data Conduit 15533 | -7/Data Miner | Found Prototype Hackware 15559 | -7/Data Miner | Core integrity fell below 50% 15565 | -7/Data Miner | Identified exit to Proximity Caves 15566 | -7/Data Miner | Entered Proximity Caves 15571 | -6/Proximity Caves | Learned Factory stockpile data 16003 | -6/Proximity Caves | Identified Deep Network Scanner 16004 | -6/Proximity Caves | Core integrity fell below 20% 16009 | -6/Proximity Caves | Destroyed by G-50 Soldier with Heavy Laser Last Messages --------------- 15998_ Dropped Lrg. Storage Unit. 15999_ Dropped Adv. Sensor Array. 16000_ Dropped Adv. Signal Interpreter. 16000_ Penetrated by Slug. 16000_ Dropped Adv. Terrain Scan Processor. 16001_ Dropped Adv. Terrain Scanner. 16001_ Dropped Adv. Transmission Jammer. 16002_ Dropped Hvy. Rocket Launcher. 16002_ Dropped Com. Tesla Bomb Launcher. 16003_ Dropped Imp. Recalibrator. 16003_ Identified Deep Network Scanner. 16004_ Discarded Adv. Terrain Scan Processor. 16005_ Discarded Adv. Signal Interpreter. 16005_ Dropped Cmb. Antigrav System. 16006_ Dropped Lrg. Storage Unit. 16007_ Dropped Cmb. Antigrav System. 16008_ Acquired Adv. Terrain Scan Processor. 16008_ Penetrated by Slug. 16008_ Deep Network Scanner destroyed. [Achievement: Overachiever] Map ----- +----------------------------------------------------+ | ?????????????????????????????????????????????????? | | ?????????????????????????????????????????????????? | | ?????????????????????????????????????????????????? | | ?????????????????????????????????????????????????? | | ?????????????????????????????????????????????????? | | ?????????????????????????????????????????????????? | | ?????????????????????????????????????????????????? | | ?????????????????????????????????????????????????? | | ?????????????????????????????????????????????????? | | ?????????????????????????????????????????????????? | | ???????????????????? ????????????????????????????? | | ????????????????? ???????????????????????????? | | ???????????????? ???????????????????????????? | | ????????????????? ??????????????????????????? | | ?????????????????# ?????????????????????????? | | ?????????????????? ????????????????????????? | | ??????????????????# #???????????????????????? | | ????????? ??##???# ???????????????????????? | | ??????? ? ### ??## ???????????????????????? | | ??? ????? ?## ????????????????????????? | | ?# ????? ?? ## #????????????????????????? | | ???? ? ????? ?# #????????????????????????? | | ?? ? ??? ??? #?# !##???????????????????????? | | #?????#??#?#?# #??# !!!##??????????????????????? | | # ??????????# ##?# ]!=!#####??????????????????? | | ???? ??????# #?# !!!@= ##?????????????????? | | #??? ???? ? # ### =] ##????????????????? | | # ????????? / g g #????????????????? | | # ??? ??? ?# hg #### ##????????????????? | | # ??? ??????"# ##????##?????????????????? | | ? ?"??? ? ??# # #????????????????????????? | | # #? ?? ?# #### #????????????????????????? | | # ?? ???????"# #??## ##????????????????????????? | | # ########### #??## ##?????????????????????????? | | # #######??????????????????????????? | | # ##?####???????????????????????? | | ##### ###### ### ##???????????????????????? | | #### ##?### #???????#???????????????? | | ## #?### #???#???????????????????? | | #?## ##??#??#????????????????? | | #??# ### #????#?#????????????????? | | ## #??## #### #####????#???????????????? | | ## #??## ### ####?##??????????????????? | | #?# %##?## #?#????#????????????????? | | #### #?## ##########??????????????? | | #?### ### ## ###??######?##??????????? | | #?### ## ## #?#######?##?#??????????? | | ##??# ## ####?#??#####???????????? | | #? ### #?#??##?#?####??????????? | | ?? ## #?# ### ### #####?#######?##??????????? | +----------------------------------------------------+ Best States ------------- Heat Dissipation 34 Energy Generation 18 Energy Capacity 310 Matter Stores 300 Matter Capacity 300 Sight Range 16 Robot Scan Range 16 Terrain Scan Range 20 Terrain Scan Density 210 Jamming Range 16 Armor Coverage 675 Resistance: TH 10 Resistance: EM 20 Propulsion Shielding 66 Weapon Cycling 25 Evasion (%) 49 Core Analysis 10 Recoil Reduction 2 Offensive Hacking 24 Defensive Hacking 11 Item Schematics ----------------- Cmb. Antigrav System | -8/Materials | Scanalyzed Adv. Signal Interpreter | -8/Materials | Hacked Adv. Terrain Scanner | -7/Factory | Scanalyzed Imp. Armor Integrity Analyzer | -7/Factory | Scanalyzed Exp. Heat Sink | -7/Factory | Scanalyzed Imp. Hacking Suite | -7/Factory | Hacked Adv. Sensor Array | -7/Factory | Hacked Cold Fusion Reactor | -7/Factory | Scanalyzed Com. Tesla Bomb Launcher | -7/Factory | Scanalyzed Adv. Transmission Jammer | -7/Factory | Scanalyzed Lrn. Proton Cannon | -7/Factory | Scanalyzed Imp. Utility Shielding | -7/Factory | Hacked Mic. Nuclear Core | -7/Factory | Hacked Imp. Propulsion Shielding | -7/Factory | Scanalyzed Adv. Weapon Cycler | -7/Factory | Scanalyzed Imp. Recalibrator | -7/Factory | Scanalyzed Lrg. Storage Unit | -7/Factory | Scanalyzed Fission Core | -7/Factory | Hacked Lgt. Regenerative Plating | -7/Data Miner | Free Combat Drone Bay | -7/Data Miner | Free Cmb. Gravmag System | -7/Data Miner | Free Exp. Terrain Scanner | -7/Data Miner | Free Exp. Targeting Computer | -7/Data Miner | Free Tactical Coordination Suite | -7/Data Miner | Free Mni. Smartbomb Launcher | -7/Data Miner | Free Plasma Sword | -7/Data Miner | Free Kinetic Spear | -7/Data Miner | Free Robot Schematics ------------------ None Fabricated ------------ Cmb. Antigrav System | x2 | -7/Factory Imp. Hacking Suite | x1 | -7/Factory Adv. Signal Interpreter | x2 | -7/Factory Imp. Hacking Suite | x1 | -7/Factory Alien Tech Used ----------------- None Achievements -------------- Overachiever Unlimited Data Challenges ------------ None Game ------ Seed SpreadGravitonSegregator Manual? 0 Play Time 05:17:14 Cumulative 177.4 hours Start 2021.01.26 @ 10:48:24 End 2021.01.26 @ 19:20:05 Sessions 1 Manual Loads 0 Difficulty Rogue Special Mode None Game No. 98 Rogue 98 Adventurer 0 Explorer 0 Win Type - Total 3 Types 3/0/0/0/0/0/0/0/0 Lore% 37 Gallery% 64 Achievement% 50 Wizard Run 0 Options --------- ASCII 0 Keyboard 0 Movement Mouse Keybinds 0 Fullscreen 2 Font 18/TerminusBold Map View 76x50 Tactical HUD 1 Map Filters NONE Filters NONE Steam 1 RUN: 682cc337-fe1f-45dd-8187-b11113d980a9